fUSD/lending_fUSD_20250716
["ID","MTS","AMOUNT","RATE_DAILY","PERIOD"]
[372607607,1752702640314,-836.55,0.00019571,2]
[372607610,1752702640324,-568.6,0.00019571,2]
[372607612,1752702640333,-460.0,0.00019571,2]
[372607614,1752702640343,-460.0,0.00019571,2]
[372607616,1752702640354,-460.0,0.00019571,2]
[372607618,1752702640364,-173.19334186,0.00019571,2]
[372607620,1752702640373,-460.0,0.00019571,2]
[372607622,1752702640383,-460.0,0.00019571,2]
[372607624,1752702640392,-460.0,0.00019571,2]
[372607626,1752702640402,-583.71669502,0.00019571,2]
[372607628,1752702640411,-500.0,0.00019571,2]
[372607630,1752702640421,-460.0,0.00019571,2]
[372607632,1752702640430,-460.0,0.00019571,2]
[372607634,1752702640440,-460.0,0.00019571,2]
[372607636,1752702640450,-541.7,0.00019571,2]
[372607638,1752702640460,-460.0,0.00019571,2]
[372607640,1752702640469,-460.0,0.00019571,2]
[372607642,1752702640478,-460.0,0.00019571,2]
[372607644,1752702640488,-485.06975282,0.00019571,2]
[372607646,1752702640497,-460.0,0.00019571,2]
[372607648,1752702640507,-460.0,0.00019571,2]
[372607650,1752702640516,-1051.81,0.00019571,2]
[372607652,1752702640525,-460.0,0.00019571,2]
[372607654,1752702640535,-460.0,0.00019571,2]
[372607656,1752702640544,-460.0,0.00019571,2]
[372607658,1752702640554,-460.0,0.00019571,2]
[372607660,1752702640564,-460.0,0.00019571,2]
[372607662,1752702640573,-460.0,0.00019571,2]
[372607664,1752702640583,-460.0,0.00019571,2]
[372607666,1752702640594,-460.0,0.00019571,2]
[372607668,1752702640604,-460.0,0.00019571,2]
[372607670,1752702640613,-464.75,0.00019571,2]
[372607672,1752702640623,-460.0,0.00019571,2]
[372607674,1752702640632,-496.91,0.00019571,2]
[372607676,1752702640641,-460.0,0.00019571,2]
[372607678,1752702640651,-460.0,0.00019571,2]
[372607680,1752702640660,-460.0,0.00019571,2]
[372607682,1752702640670,-463.30412357,0.00019571,2]
[372607684,1752702640679,-531.92,0.00019571,2]
[372607686,1752702640688,-463.0583887,0.00019571,2]
[372607688,1752702640697,-460.0,0.00019571,2]
[372607690,1752702640706,-460.0,0.00019571,2]
[372607691,1752702640715,-460.0,0.00019571,2]
[372607693,1752702640725,-686.24,0.00019571,2]
[372607695,1752702640734,-489.93,0.00019571,2]
[372607697,1752702640744,-460.0,0.00019571,2]
[372607699,1752702640755,-460.0,0.00019571,2]
[372607701,1752702640766,-460.0,0.00019571,2]
[372607703,1752702640776,-460.0,0.00019571,2]
[372607705,1752702640786,-460.0,0.00019571,2]
[372607708,1752702640796,-460.0,0.00019571,2]
[372607709,1752702640806,-460.0,0.00019571,2]
[372607712,1752702640816,-477.11,0.00019571,2]
[372607713,1752702640825,-460.0,0.00019571,2]
[372607715,1752702640834,-460.0,0.00019571,2]
[372607717,1752702640844,-460.0,0.00019571,2]
[372607719,1752702640853,-460.0,0.00019571,2]
[372607721,1752702640863,-567.85,0.00019571,2]
[372607723,1752702640872,-520.68,0.00019571,2]
[372607725,1752702640881,-460.0,0.00019571,2]
[372607727,1752702640891,-460.0,0.00019571,2]
[372607729,1752702640900,-1446.34,0.00019571,2]
[372607731,1752702640909,-1383.34,0.00019571,2]
[372607733,1752702640919,-460.0,0.00019571,2]
[372607735,1752702640928,-460.0,0.00019571,2]
[372607737,1752702640937,-1631.982889,0.00019571,2]
[372607739,1752702640947,-882.25,0.00019571,2]
[372607741,1752702640956,-158.833951,0.00019571,2]
[372607743,1752702640966,-460.0,0.00019571,2]
[372607745,1752702640975,-156.019409,0.00019571,2]
[372607747,1752702640984,-1712.027377,0.00019571,2]
[372607749,1752702640994,-460.0,0.00019571,2]
[372607751,1752702641003,-1731.050355,0.00019571,2]
[372607753,1752702641013,-460.0,0.00019571,2]
[372607755,1752702641022,-460.0,0.00019571,2]
[372607757,1752702641032,-1647.21,0.00019571,2]
[372607759,1752702641041,-460.0,0.00019571,2]
[372607761,1752702641051,-460.0,0.00019571,2]
[372607763,1752702641060,-460.0,0.00019571,2]
[372607765,1752702641070,-460.0,0.00019571,2]
[372607767,1752702641079,-460.0,0.00019571,2]
[372607769,1752702641088,-460.0,0.00019571,2]
[372607771,1752702641098,-460.0,0.00019571,2]
[372607773,1752702641107,-460.0,0.00019571,2]
[372607775,1752702641116,-460.0,0.00019571,2]
[372607777,1752702641125,-460.0,0.00019571,2]
[372607779,1752702641134,-733.57,0.00019571,2]
[372607781,1752702641143,-460.0,0.00019571,2]
[372607782,1752702641153,-460.0,0.00019571,2]
[372607784,1752702641165,-460.0,0.00019571,2]
[372607787,1752702641175,-460.0,0.00019571,2]
[372607788,1752702641185,-481.33,0.00019571,2]
[372607791,1752702641194,-1135.09,0.00019571,2]
[372607793,1752702641205,-460.0,0.00019571,2]
[372607795,1752702641214,-567.6,0.00019571,2]
[372607797,1752702641224,-500.0,0.00019571,2]
[372607798,1752702641235,-460.0,0.00019571,2]
[372607800,1752702641246,-531.29,0.00019571,2]
[372607802,1752702641255,-1247.57,0.00019571,2]
[372607804,1752702641264,-531.94,0.00019571,2]
[372607806,1752702641274,-594.65,0.00019571,2]
[372607808,1752702641284,-653.41,0.00019571,2]
[372607810,1752702641294,-460.0,0.00019571,2]
[372607812,1752702641303,-460.0,0.00019571,2]
[372607814,1752702641312,-460.0,0.00019571,2]
[372607816,1752702641323,-1199.89,0.00019571,2]
[372607818,1752702641332,-306.57372659,0.00019571,2]
[372607820,1752702641342,-460.0,0.00019571,2]
[372607822,1752702641351,-460.0,0.00019571,2]
[372607824,1752702641361,-460.0,0.00019571,2]
[372607826,1752702641371,-898.17,0.00019571,2]
[372607828,1752702641380,-460.0,0.00019571,2]
[372607830,1752702641390,-460.0,0.00019571,2]
[372607832,1752702641400,-460.0,0.00019571,2]
[372607834,1752702641409,-840.08,0.00019571,2]
[372607836,1752702641419,-386.81941551,0.00019571,2]
[372607838,1752702641429,-460.0,0.00019571,2]
[372607840,1752702641438,-460.0,0.00019571,2]
[372607842,1752702641447,-460.0,0.00019571,2]
[372607844,1752702641457,-460.0,0.00019571,2]
[372607846,1752702641469,-495.38001186,0.00019571,2]
[372607848,1752702641479,-566.76496819,0.00019571,2]
[372607850,1752702641488,-585.57,0.00019571,2]
[372607852,1752702641497,-556.99,0.00019571,2]
[372607854,1752702641507,-460.0,0.00019571,2]
[372607856,1752702641516,-460.0,0.00019571,2]
[372607858,1752702641526,-460.0,0.00019571,2]
[372607860,1752702641536,-460.0,0.00019571,2]
[372607862,1752702641545,-460.0,0.00019571,2]
[372607863,1752702641554,-1003.41,0.00019571,2]
[372607865,1752702641564,-460.0,0.00019571,2]
[372607867,1752702641574,-460.0,0.00019571,2]
[372607869,1752702641583,-2215.62,0.00019571,2]
[372607871,1752702641592,-460.0,0.00019571,2]
[372607873,1752702641602,-460.0,0.00019571,2]
[372607875,1752702641613,-460.0,0.00019571,2]
[372607877,1752702641623,-460.0,0.00019571,2]
[372607879,1752702641632,-460.0,0.00019571,2]
[372607882,1752702641642,-460.0,0.00019571,2]
[372607883,1752702641651,-460.0,0.00019571,2]
[372607885,1752702641660,-901.27,0.00019571,2]
[372607887,1752702641669,-276.66485344,0.00019571,2]
[372607889,1752702641678,-460.0,0.00019571,2]
[372607891,1752702641689,-1051.13,0.00019571,2]
[372607893,1752702641698,-460.0,0.00019571,2]
[372607895,1752702641707,-470.37,0.00019571,2]
[372607897,1752702641719,-460.0,0.00019571,2]
[372607899,1752702641729,-852.86,0.00019571,2]
[372607901,1752702641738,-2329.41,0.00019571,2]
[372607903,1752702641747,-500.0,0.00019571,2]
[372607905,1752702641757,-500.83,0.00019571,2]
[372607907,1752702641766,-460.0,0.00019571,2]
[372607909,1752702641776,-549.62085969,0.00019571,2]
[372607911,1752702641785,-468.53050708,0.00019571,2]
[372607913,1752702641795,-460.0,0.00019571,2]
[372607915,1752702641804,-460.0,0.00019571,2]
[372607917,1752702641813,-1186.99,0.00019571,2]
[372607919,1752702641822,-460.0,0.00019571,2]
[372607921,1752702641831,-504.7,0.00019571,2]
[372607923,1752702641840,-460.0,0.00019571,2]
[372607925,1752702641850,-1119.55,0.00019571,2]
[372607927,1752702641859,-460.0,0.00019571,2]
[372607929,1752702641868,-543.92,0.00019571,2]
[372607931,1752702641877,-1996.08,0.00019571,2]
[372607933,1752702641887,-460.0,0.00019571,2]
[372607935,1752702641897,-1040.54,0.00019571,2]
[372607937,1752702641907,-625.32,0.00019571,2]
[372607939,1752702641916,-460.0,0.00019571,2]
[372607940,1752702641926,-460.0,0.00019571,2]
[372607942,1752702641937,-1059.2,0.00019571,2]
[372607945,1752702641946,-460.0,0.00019571,2]
[372607946,1752702641957,-853.12,0.00019571,2]
[372607948,1752702641966,-460.0,0.00019571,2]
[372607950,1752702641976,-460.0,0.00019571,2]
[372607953,1752702641987,-598.93,0.00019571,2]
[372607954,1752702641996,-460.0,0.00019571,2]
[372607957,1752702642006,-467.41,0.00019571,2]
[372607959,1752702642017,-460.0,0.00019571,2]
[372607960,1752702642027,-460.0,0.00019571,2]
[372607962,1752702642038,-2253.67,0.00019571,2]
[372607964,1752702642047,-460.0,0.00019571,2]
[372607967,1752702642058,-460.0,0.00019571,2]
[372607968,1752702642068,-460.0,0.00019571,2]
[372607970,1752702642077,-502.04,0.00019571,2]
[372607973,1752702642087,-751.9,0.00019571,2]
[372607974,1752702642096,-1149.0,0.00019571,2]
[372607976,1752702642106,-460.0,0.00019571,2]
[372607978,1752702642115,-460.0,0.00019571,2]
[372607980,1752702642124,-460.0,0.00019571,2]
[372607993,1752702642380,-460.0,0.00019571,2]
[372607995,1752702642391,-750.86,0.00019571,2]
[372607997,1752702642400,-460.0,0.00019571,2]
[372607999,1752702642410,-460.0,0.00019571,2]
[372608001,1752702642420,-460.0,0.00019571,2]
[372608003,1752702642430,-530.46,0.00019571,2]
[372608005,1752702642439,-460.0,0.00019571,2]
[372608007,1752702642454,-953.78,0.00019571,2]
[372608009,1752702642464,-460.0,0.00019571,2]
[372608011,1752702642474,-460.0,0.00019571,2]
[372608013,1752702642483,-460.0,0.00019571,2]
[372608015,1752702642493,-790.77,0.00019571,2]
[372608017,1752702642502,-460.0,0.00019571,2]
[372608019,1752702642512,-460.0,0.00019571,2]
[372608021,1752702642522,-844.82,0.00019571,2]
[372608023,1752702642531,-487.91,0.00019571,2]
[372608025,1752702642541,-460.0,0.00019571,2]
[372608027,1752702642550,-1433.11,0.00019571,2]
[372608029,1752702642560,-460.0,0.00019571,2]
[372608031,1752702642570,-460.0,0.00019571,2]
[372608033,1752702642579,-1307.34,0.00019571,2]
[372608035,1752702642588,-460.0,0.00019571,2]
[372608037,1752702642598,-460.0,0.00019571,2]
[372608039,1752702642607,-460.0,0.00019571,2]
[372608041,1752702642617,-1156.86,0.00019571,2]
[372608043,1752702642626,-460.0,0.00019571,2]
[372608045,1752702642636,-460.0,0.00019571,2]
[372608047,1752702642645,-460.0,0.00019571,2]
[372608049,1752702642655,-626.85,0.00019571,2]
[372608050,1752702642664,-635.06,0.00019571,2]
[372608053,1752702642674,-460.0,0.00019571,2]
[372608054,1752702642683,-460.0,0.00019571,2]
[372608057,1752702642692,-462.38,0.00019571,2]
[372608059,1752702642702,-740.87,0.00019571,2]
[372608061,1752702642712,-476.7,0.00019571,2]
[372608063,1752702642724,-578.11,0.00019571,2]
[372608065,1752702642733,-375.50294276,0.00019571,2]
[372608067,1752702642742,-3387.25,0.00019571,2]
[372608069,1752702642752,-460.0,0.00019571,2]
[372608071,1752702642761,-460.0,0.00019571,2]
[372608073,1752702642771,-460.0,0.00019571,2]
[372608075,1752702642782,-460.0,0.00019571,2]
[372608077,1752702642792,-577.93,0.00019571,2]
[372608079,1752702642802,-730.55,0.00019571,2]
[372608080,1752702642811,-460.0,0.00019571,2]
[372608082,1752702642820,-1531.36,0.00019571,2]
[372608084,1752702642830,-460.0,0.00019571,2]
[372608085,1752702642840,-460.0,0.00019571,2]
[372608087,1752702642850,-462.7719112,0.00019571,2]
[372608089,1752702642860,-460.0,0.00019571,2]
[372608091,1752702642870,-460.0,0.00019571,2]
[372608093,1752702642879,-460.0,0.00019571,2]
[372608095,1752702642889,-502.4,0.00019571,2]
[372608097,1752702642899,-1402.8,0.00019571,2]
[372608099,1752702642908,-460.0,0.00019571,2]
[372608101,1752702642918,-460.0,0.00019571,2]
[372608103,1752702642927,-460.0,0.00019571,2]
[372608105,1752702642937,-651.94,0.00019571,2]
[372608107,1752702642947,-460.0,0.00019571,2]
[372608109,1752702642956,-461.29629453,0.00019571,2]
[372608111,1752702642966,-1255.88,0.00019571,2]
[372608113,1752702642975,-707.42,0.00019571,2]
[372608115,1752702642984,-494.88,0.00019571,2]
[372608116,1752702642994,-460.0,0.00019571,2]
[372608118,1752702643011,-507.34,0.00019571,2]
[372608120,1752702643021,-1059.09,0.00019571,2]
[372608123,1752702643031,-523.62,0.00019571,2]
[372608124,1752702643041,-460.0,0.00019571,2]
[372608128,1752702643051,-580.29,0.00019571,2]
[372608130,1752702643060,-460.0,0.00019571,2]
[372608131,1752702643070,-460.0,0.00019571,2]
[372608133,1752702643079,-460.0,0.00019571,2]
[372608137,1752702643090,-460.0,0.00019571,2]
[372608140,1752702643100,-460.0,0.00019571,2]
[372608142,1752702643109,-460.0,0.00019571,2]
[372608145,1752702643119,-460.0,0.00019571,2]
[372608148,1752702643128,-460.0,0.00019571,2]
[372608150,1752702643137,-496.18,0.00019571,2]
[372608153,1752702643148,-500.0,0.00019571,2]
[372608154,1752702643161,-614.56,0.00019571,2]
[372608156,1752702643179,-538.67018256,0.00019571,2]
[372608159,1752702643188,-460.0,0.00019571,2]
[372608160,1752702643198,-460.0,0.00019571,2]
[372608163,1752702643208,-793.31,0.00019571,2]
[372608165,1752702643219,-460.0,0.00019571,2]
[372608168,1752702643230,-460.0,0.00019571,2]
[372608170,1752702643241,-460.0,0.00019571,2]
[372608172,1752702643252,-460.0,0.00019571,2]
[372608174,1752702643262,-500.0,0.00019571,2]
[372608176,1752702643271,-696.21,0.00019571,2]
[372608178,1752702643281,-460.0,0.00019571,2]
[372608180,1752702643291,-566.21,0.00019571,2]
[372608183,1752702643300,-460.0,0.00019571,2]
[372608185,1752702643310,-746.87,0.00019571,2]
[372608187,1752702643319,-460.0,0.00019571,2]
[372608190,1752702643329,-500.0,0.00019571,2]
[372608192,1752702643339,-460.0,0.00019571,2]
[372608194,1752702643349,-460.0,0.00019571,2]
[372608196,1752702643359,-1046.67,0.00019571,2]
[372608198,1752702643368,-282.7349704,0.00019571,2]
[372608200,1752702643378,-460.0,0.00019571,2]
[372608202,1752702643387,-479.86,0.00019571,2]
[372608204,1752702643397,-460.0,0.00019571,2]
[372608206,1752702643407,-460.0,0.00019571,2]
[372608208,1752702643417,-460.0,0.00019571,2]
[372608210,1752702643426,-757.81,0.00019571,2]
[372608212,1752702643436,-460.0,0.00019571,2]
[372608214,1752702643446,-460.0,0.00019571,2]
[372608216,1752702643456,-460.0,0.00019571,2]
[372608218,1752702643465,-555.52,0.00019571,2]
[372608220,1752702643475,-460.0,0.00019571,2]
[372608222,1752702643484,-460.0,0.00019571,2]
[372608224,1752702643494,-3956.59,0.00019571,2]
[372608225,1752702643503,-460.0,0.00019571,2]
[372608227,1752702643513,-460.0,0.00019571,2]
[372608229,1752702643522,-460.0,0.00019571,2]
[372608231,1752702643532,-513.69,0.00019571,2]
[372608233,1752702643541,-460.0,0.00019571,2]
[372608235,1752702643550,-523.98,0.00019571,2]
[372608237,1752702643561,-460.0,0.00019571,2]
[372608239,1752702643570,-460.0,0.00019571,2]
[372608241,1752702643579,-460.0,0.00019571,2]
[372608243,1752702643589,-460.0,0.00019571,2]
[372608245,1752702643600,-460.0,0.00019571,2]
[372608247,1752702643610,-460.0,0.00019571,2]
[372608249,1752702643619,-484.38,0.00019571,2]
[372608251,1752702643629,-460.0,0.00019571,2]
[372608253,1752702643638,-753.95,0.00019571,2]
[372608255,1752702643649,-460.0,0.00019571,2]
[372608257,1752702643658,-460.0,0.00019571,2]
[372608258,1752702643667,-326.45588222,0.00019571,2]
[372608260,1752702643676,-460.0,0.00019571,2]
[372608262,1752702643687,-460.0,0.00019571,2]
[372608264,1752702643696,-556.2,0.00019571,2]
[372608266,1752702643705,-24286.06,0.00019571,2]
[372608268,1752702643714,-581.48,0.00019571,2]
[372608270,1752702643724,-460.0,0.00019571,2]
[372608272,1752702643733,-761.25,0.00019571,2]
[372608275,1752702643743,-460.0,0.00019571,2]
[372608278,1752702643753,-517.87,0.00019571,2]
[372608281,1752702643763,-460.0,0.00019571,2]
[372608283,1752702643772,-4530.56,0.00019571,2]
[372608286,1752702643782,-854.73,0.00019571,2]
[372608289,1752702643792,-2344.03,0.00019571,2]
[372608291,1752702643801,-460.0,0.00019571,2]
[372608295,1752702643810,-473.19,0.00019571,2]
[372608298,1752702643820,-460.0,0.00019571,2]
[372608302,1752702643831,-250.0,0.00019571,2]
[372608305,1752702643840,-460.0,0.00019571,2]
[372608308,1752702643849,-537.07881155,0.00019571,2]
[372608310,1752702643859,-460.0,0.00019571,2]
[372608312,1752702643868,-166.10509529,0.00019571,2]
[372608314,1752702643878,-1097.87,0.00019571,2]
[372608316,1752702643887,-549.7,0.00019571,2]
[372608318,1752702643897,-460.0,0.00019571,2]
[372608320,1752702643907,-460.0,0.00019571,2]
[372608322,1752702643916,-460.0,0.00019571,2]
[372608324,1752702643926,-460.0,0.00019571,2]
[372608325,1752702643935,-3528.54,0.00019571,2]
[372608327,1752702643945,-460.0,0.00019571,2]
[372608329,1752702643955,-460.0,0.00019571,2]
[372608331,1752702643965,-460.0,0.00019571,2]
[372608333,1752702643975,-4607.45,0.00019571,2]
[372608335,1752702643984,-460.0,0.00019571,2]
[372608337,1752702643994,-460.0,0.00019571,2]
[372608339,1752702644003,-461.66072739,0.00019571,2]
[372608341,1752702644013,-3969.1,0.00019571,2]
[372608343,1752702644022,-460.0,0.00019571,2]
[372608345,1752702644032,-460.0,0.00019571,2]
[372608347,1752702644042,-918.2,0.00019571,2]
[372608349,1752702644052,-1151.05,0.00019571,2]
[372608351,1752702644061,-460.0,0.00019571,2]
[372608353,1752702644071,-915.29,0.00019571,2]
[372608355,1752702644081,-460.0,0.00019571,2]
[372608357,1752702644091,-1602.32,0.00019571,2]
[372608359,1752702644101,-460.0,0.00019571,2]
[372608361,1752702644111,-460.0,0.00019571,2]
[372608363,1752702644120,-591.29876037,0.00019571,2]
[372608365,1752702644130,-460.0,0.00019571,2]
[372608367,1752702644139,-460.0,0.00019571,2]
[372608369,1752702644149,-460.0,0.00019571,2]
[372608371,1752702644161,-460.0,0.00019571,2]
[372608373,1752702644170,-460.0,0.00019571,2]
[372608375,1752702644180,-460.0,0.00019571,2]
[372608377,1752702644189,-460.0,0.00019571,2]
[372608379,1752702644200,-461.24157071,0.00019571,2]
[372608381,1752702644211,-548.86,0.00019571,2]
[372608383,1752702644220,-1683.91,0.00019571,2]
[372608385,1752702644231,-460.0,0.00019571,2]
[372608387,1752702644241,-461.11225935,0.00019571,2]
[372608389,1752702644251,-460.0,0.00019571,2]
[372608391,1752702644260,-10676.09,0.00019571,2]
[372608393,1752702644270,-474.49,0.00019571,2]
[372608395,1752702644280,-603.99,0.00019571,2]
[372608396,1752702644290,-460.0,0.00019571,2]
[372608398,1752702644299,-460.0,0.00019571,2]
[372608400,1752702644309,-725.02,0.00019571,2]
[372608402,1752702644319,-3453.34,0.00019571,2]
[372608404,1752702644328,-460.0,0.00019571,2]
[372608406,1752702644338,-461.05821104,0.00019571,2]
[372608408,1752702644347,-1600.38,0.00019571,2]
[372608410,1752702644357,-460.0,0.00019571,2]
[372608412,1752702644367,-460.0,0.00019571,2]
[372608414,1752702644376,-1871.54,0.00019571,2]
[372608416,1752702644386,-460.0,0.00019571,2]
[372608418,1752702644395,-795.44,0.00019571,2]
[372608420,1752702644405,-1427.32,0.00019571,2]
[372608422,1752702644417,-460.0,0.00019571,2]
[372608424,1752702644426,-608.65,0.00019571,2]
[372608426,1752702644436,-1345.64,0.00019571,2]
[372608428,1752702644446,-463.7334088,0.00019571,2]
[372608430,1752702644456,-1804.33,0.00019571,2]
[372608432,1752702644466,-571.83,0.00019571,2]
[372608434,1752702644476,-460.0,0.00019571,2]
[372608436,1752702644485,-500.0,0.00019571,2]
[372608438,1752702644495,-460.0,0.00019571,2]
[372608440,1752702644505,-460.0,0.00019571,2]
[372608442,1752702644515,-499.88,0.00019571,2]
[372608444,1752702644524,-460.0,0.00019571,2]
[372608446,1752702644534,-460.0,0.00019571,2]
[372608448,1752702644543,-2171.92,0.00019571,2]
[372608450,1752702644552,-460.0,0.00019571,2]
[372608452,1752702644562,-1959.4,0.00019571,2]
[372608454,1752702644571,-8720.6,0.00019571,2]
[372608456,1752702644581,-460.0,0.00019571,2]
[372608458,1752702644590,-460.0,0.00019571,2]
[372608460,1752702644599,-453.77548305,0.00019571,2]
[372608462,1752702644609,-867.11,0.00019571,2]
[372608464,1752702644618,-509.35,0.00019571,2]
[372608466,1752702644628,-460.0,0.00019571,2]
[372608468,1752702644638,-460.0,0.00019571,2]
[372608470,1752702644648,-995.6,0.00019571,2]
[372608472,1752702644657,-263.32533373,0.00019571,2]
[372608474,1752702644667,-500.0,0.00019571,2]
[372608476,1752702644676,-1355.93,0.00019571,2]
[372608478,1752702644685,-460.0,0.00019571,2]
[372608480,1752702644695,-460.0,0.00019571,2]
[372608482,1752702644705,-574.77,0.00019571,2]
[372608484,1752702644714,-460.0,0.00019571,2]
[372608486,1752702644724,-1711.85,0.00019571,2]
[372608488,1752702644733,-993.72,0.00019571,2]
[372608500,1752702644828,-460.0,0.00019571,2]
[372608501,1752702644838,-726.18,0.00019571,2]
[372608503,1752702644847,-460.0,0.00019571,2]
[372608505,1752702644856,-2507.2,0.00019571,2]
[372608507,1752702644866,-1502.86,0.00019571,2]
[372608509,1752702644875,-642.87,0.00019571,2]
[372608511,1752702644884,-9673.38,0.00019571,2]
[372608513,1752702644893,-3399.74,0.00019571,2]
[372608515,1752702644906,-460.0,0.00019571,2]
[372608517,1752702644922,-2383.34,0.00019571,2]
[372608519,1752702644931,-2419.58,0.00019571,2]
[372608521,1752702644941,-1093.39,0.00019571,2]
[372608523,1752702644950,-592.66,0.00019571,2]
[372608525,1752702644960,-460.0,0.00019571,2]
[372608527,1752702644969,-460.0,0.00019571,2]
[372608529,1752702644979,-460.0,0.00019571,2]
[372608531,1752702644989,-460.0,0.00019571,2]
[372608533,1752702644998,-460.0,0.00019571,2]
[372608535,1752702645007,-778.67,0.00019571,2]
[372608537,1752702645016,-1968.35,0.00019571,2]
[372608539,1752702645025,-460.0,0.00019571,2]
[372608541,1752702645036,-805.2,0.00019571,2]
[372608543,1752702645046,-278.0540931,0.00019571,2]
[372608545,1752702645055,-611.97,0.00019571,2]
[372608547,1752702645064,-460.0,0.00019571,2]
[372608549,1752702645073,-692.83,0.00019571,2]
[372608551,1752702645083,-1668.41,0.00019571,2]
[372608553,1752702645092,-936.53,0.00019571,2]
[372608555,1752702645101,-460.0,0.00019571,2]
[372608557,1752702645110,-790.29,0.00019571,2]
[372608559,1752702645119,-460.0,0.00019571,2]
[372608560,1752702645128,-460.0,0.00019571,2]
[372608562,1752702645138,-460.0,0.00019571,2]
[372608564,1752702645148,-2124.97,0.00019571,2]
[372608567,1752702645164,-460.0,0.00019571,2]
[372608568,1752702645174,-1986.24,0.00019571,2]
[372608570,1752702645184,-460.0,0.00019571,2]
[372608572,1752702645194,-460.0,0.00019571,2]
[372608574,1752702645204,-460.0,0.00019571,2]
[372608576,1752702645214,-528.0,0.00019571,2]
[372608578,1752702645223,-905.68,0.00019571,2]
[372608580,1752702645235,-760.7,0.00019571,2]
[372608582,1752702645246,-460.0,0.00019571,2]
[372608584,1752702645255,-9585.83,0.00019571,2]
[372608586,1752702645264,-460.0,0.00019571,2]
[372608588,1752702645275,-710.75,0.00019571,2]
[372608590,1752702645284,-1462.37,0.00019571,2]
[372608592,1752702645294,-460.0,0.00019571,2]
[372608594,1752702645303,-490.34,0.00019571,2]
[372608597,1752702645313,-460.0,0.00019571,2]
[372608598,1752702645323,-1299.57,0.00019571,2]
[372608600,1752702645332,-1433.65,0.00019571,2]
[372608602,1752702645342,-538.86,0.00019571,2]
[372608604,1752702645352,-829.54,0.00019571,2]
[372608606,1752702645361,-751.15,0.00019571,2]
[372608608,1752702645371,-460.0,0.00019571,2]
[372608610,1752702645380,-527.53,0.00019571,2]
[372608613,1752702645390,-460.0,0.00019571,2]
[372608614,1752702645399,-460.0,0.00019571,2]
[372608616,1752702645409,-460.0,0.00019571,2]
[372608618,1752702645419,-560.46,0.00019571,2]
[372608620,1752702645428,-460.0,0.00019571,2]
[372608622,1752702645437,-460.0,0.00019571,2]
[372608624,1752702645447,-6468.26,0.00019571,2]
[372608626,1752702645456,-460.0,0.00019571,2]
[372608628,1752702645466,-460.0,0.00019571,2]
[372608630,1752702645476,-460.0,0.00019571,2]
[372608632,1752702645485,-1650.7,0.00019571,2]
[372608634,1752702645495,-460.0,0.00019571,2]
[372608636,1752702645504,-1023.25,0.00019571,2]